[Event "*** Titled Tuesday Blitz"]
[Site "Chess.com"]
[Date "2021.02.16"]
[Round "6"]
[White "juancruzarias"]
[Black "Gerodot71"]
[Result "1-0"]
[WhiteElo "2647"]
[BlackElo "2474"]
[TimeControl "180+1"]
[EndTime "11:09:06 PST"]
[Termination "juancruzarias won by resignation"]

1. d4 {[%clk 0:03:00.9]} 1... Nf6 {[%clk 0:02:59.9]} 2. Nf3 {[%clk 0:03:01.4]}
2... d5 {[%clk 0:02:59.6]} 3. e3 {[%clk 0:02:59.5]} 3... c5 {[%clk 0:02:58.1]}
4. c3 {[%clk 0:02:57.5]} 4... e6 {[%clk 0:02:53.2]} 5. Nbd2 {[%clk 0:02:57.2]}
5... Be7 {[%clk 0:02:52.2]} 6. Bd3 {[%clk 0:02:57.8]} 6... O-O {[%clk
0:02:52.6]} 7. O-O {[%clk 0:02:58.4]} 7... b6 {[%clk 0:02:46.8]} 8. Ne5 {[%clk
0:02:58.6]} 8... Ba6 {[%clk 0:02:46.3]} 9. Bxa6 {[%clk 0:02:54.3]} 9... Nxa6
{[%clk 0:02:47.2]} 10. Nc6 {[%clk 0:02:53.5]} 10... Qe8 {[%clk 0:02:45.4]} 11.
Nxe7+ {[%clk 0:02:54.4]} 11... Qxe7 {[%clk 0:02:46.3]} 12. b3 {[%clk 0:02:54.3]}
12... Qb7 {[%clk 0:02:42.4]} 13. Bb2 {[%clk 0:02:54.1]} 13... Rfd8 {[%clk
0:02:38.9]} 14. Qf3 {[%clk 0:02:52.6]} 14... cxd4 {[%clk 0:02:36.8]} 15. exd4
{[%clk 0:02:51]} 15... Nc7 {[%clk 0:02:33.6]} 16. c4 {[%clk 0:02:48.3]} 16...
Nce8 {[%clk 0:02:32.8]} 17. c5 {[%clk 0:02:41.7]} 17... Rac8 {[%clk 0:02:30.9]}
18. Rfc1 {[%clk 0:02:35.1]} 18... Qa6 {[%clk 0:02:24.4]} 19. b4 {[%clk
0:02:32.1]} 19... b5 {[%clk 0:02:14.6]} 20. Qb3 {[%clk 0:02:23.6]} 20... Qc6
{[%clk 0:02:12.2]} 21. a4 {[%clk 0:02:23]} 21... a6 {[%clk 0:02:12.5]} 22. axb5
{[%clk 0:02:22.5]} 22... axb5 {[%clk 0:02:13.4]} 23. Ra7 {[%clk 0:02:17.3]}
23... Ra8 {[%clk 0:02:11.7]} 24. Rca1 {[%clk 0:02:17.4]} 24... Rxa7 {[%clk
0:02:10.9]} 25. Rxa7 {[%clk 0:02:17.5]} 25... Ra8 {[%clk 0:02:11.5]} 26. Qa2
{[%clk 0:02:17.5]} 26... Rb8 {[%clk 0:01:14.6]} 27. Nb3 {[%clk 0:02:11.2]} 27...
Ne4 {[%clk 0:01:07.3]} 28. Bc1 {[%clk 0:02:05.7]} 28... Nc3 {[%clk 0:01:01.3]}
29. Qc2 {[%clk 0:02:03.1]} 29... Ne4 {[%clk 0:00:56.6]} 30. f3 {[%clk
0:01:55.7]} 30... N4d6 {[%clk 0:00:50.3]} 31. Qa2 {[%clk 0:01:54.3]} 31... Nc4
{[%clk 0:00:48.1]} 32. Bf4 {[%clk 0:01:46.9]} 32... Rc8 {[%clk 0:00:45.6]} 33.
Na5 {[%clk 0:01:44.4]} 33... Nxa5 {[%clk 0:00:44.9]} 34. Qxa5 {[%clk 0:01:43.3]}
34... h6 {[%clk 0:00:42.4]} 35. h3 {[%clk 0:01:43]} 35... g5 {[%clk 0:00:42.5]}
36. Bg3 {[%clk 0:01:43.1]} 36... Ng7 {[%clk 0:00:42.5]} 37. Ra6 {[%clk
0:01:36.7]} 37... Qd7 {[%clk 0:00:35.3]} 38. Rb6 {[%clk 0:01:28.5]} 38... Nf5
{[%clk 0:00:35.4]} 39. Bf2 {[%clk 0:01:29.1]} 39... Qc7 {[%clk 0:00:33.8]} 40.
Qa6 {[%clk 0:00:57.4]} 40... Rf8 {[%clk 0:00:24]} 41. Rxb5 {[%clk 0:00:55.4]}
41... Qf4 {[%clk 0:00:23.9]} 42. Qa1 {[%clk 0:00:56]} 42... Kg7 {[%clk
0:00:21.7]} 43. c6 {[%clk 0:00:54.6]} 43... Rc8 {[%clk 0:00:21.1]} 44. Rc5
{[%clk 0:00:54.5]} 44... Nd6 {[%clk 0:00:12]} 45. b5 {[%clk 0:00:51.9]} 45...
Nc4 {[%clk 0:00:12.3]} 46. Qe1 {[%clk 0:00:45.3]} 46... Rb8 {[%clk 0:00:10.5]}
47. c7 {[%clk 0:00:44.8]} 47... Rc8 {[%clk 0:00:10.5]} 48. Kh1 {[%clk
0:00:44.2]} 48... Rxc7 {[%clk 0:00:10.2]} 49. Bg3 {[%clk 0:00:44.7]} 49... Rxc5
{[%clk 0:00:07.9]} 50. Bxf4 {[%clk 0:00:44]} 50... Rxb5 {[%clk 0:00:08.5]} 51.
Bg3 {[%clk 0:00:41.7]} 51... Rb2 {[%clk 0:00:08.1]} 52. Qc3 {[%clk 0:00:39.8]}
52... Rd2 {[%clk 0:00:08.1]} 53. Be5+ {[%clk 0:00:38.4]} 53... Kh7 {[%clk
0:00:06.7]} 54. Qb4 {[%clk 0:00:32.2]} 54... Rd1+ {[%clk 0:00:06.9]} 55. Kh2
{[%clk 0:00:32.4]} 55... Ne3 {[%clk 0:00:04.8]} 56. Qf8 {[%clk 0:00:25.1]} 56...
Nf1+ {[%clk 0:00:04.3]} 57. Kg1 {[%clk 0:00:25.6]} 57... Ng3+ {[%clk 0:00:04.8]}
58. Kf2 {[%clk 0:00:25.3]} 58... Nh1+ {[%clk 0:00:04.1]} 59. Ke2 {[%clk
0:00:25.2]} 1-0

[Event "*** Titled Tuesday Blitz"]
[Site "Chess.com"]
[Date "2021.02.16"]
[Round "6"]
[White "Azde"]
[Black "rachidhuilda"]
[Result "0-1"]
[WhiteElo "2426"]
[BlackElo "2294"]
[TimeControl "180+1"]
[EndTime "11:09:06 PST"]
[Termination "rachidhuilda won by resignation"]

1. d4 {[%clk 0:03:00.9]} 1... Nf6 {[%clk 0:02:59]} 2. c4 {[%clk 0:02:59]} 2...
c5 {[%clk 0:02:59.2]} 3. dxc5 {[%clk 0:02:58.4]} 3... e6 {[%clk 0:02:58.6]} 4.
g3 {[%clk 0:02:57.3]} 4... Bxc5 {[%clk 0:02:58]} 5. Bg2 {[%clk 0:02:57.9]} 5...
Qb6 {[%clk 0:02:57]} 6. Nh3 {[%clk 0:02:57.9]} 6... O-O {[%clk 0:02:55.3]} 7.
O-O {[%clk 0:02:57.5]} 7... d5 {[%clk 0:02:55.3]} 8. cxd5 {[%clk 0:02:55.2]}
8... Nxd5 {[%clk 0:02:54.2]} 9. e4 {[%clk 0:02:41.3]} 9... Nb4 {[%clk 0:02:41]}
10. Nc3 {[%clk 0:02:34.4]} 10... Rd8 {[%clk 0:02:33.8]} 11. Qe2 {[%clk
0:02:32.2]} 11... Bd7 {[%clk 0:02:30]} 12. Rd1 {[%clk 0:01:54.6]} 12... Bc6
{[%clk 0:02:21.5]} 13. a3 {[%clk 0:01:52.5]} 13... N4a6 {[%clk 0:02:16.4]} 14.
b4 {[%clk 0:01:37.3]} 14... Bd4 {[%clk 0:02:16.2]} 15. Be3 {[%clk 0:01:23.4]}
15... Bxe3 {[%clk 0:01:57.2]} 16. Rxd8+ {[%clk 0:01:22.1]} 16... Qxd8 {[%clk
0:01:56.7]} 17. Qxe3 {[%clk 0:01:23]} 17... Nc7 {[%clk 0:01:43.4]} 18. Rd1
{[%clk 0:01:19.6]} 18... Qe8 {[%clk 0:01:40.1]} 19. Nf4 {[%clk 0:00:35.1]} 19...
Nd7 {[%clk 0:01:36.3]} 20. h4 {[%clk 0:00:30.7]} 20... Nb6 {[%clk 0:01:33.2]}
21. Bf1 {[%clk 0:00:23.7]} 21... Rd8 {[%clk 0:01:31.6]} 22. Rd4 {[%clk
0:00:21.1]} 22... Rxd4 {[%clk 0:01:26.3]} 23. Qxd4 {[%clk 0:00:22]} 23... e5
{[%clk 0:00:56.3]} 24. Qd6 {[%clk 0:00:21.8]} 24... exf4 {[%clk 0:00:56.5]} 25.
Qxc7 {[%clk 0:00:21.6]} 25... fxg3 {[%clk 0:00:56]} 26. fxg3 {[%clk 0:00:20.6]}
26... h6 {[%clk 0:00:43.6]} 27. Qf4 {[%clk 0:00:20.2]} 27... a6 {[%clk
0:00:12.2]} 28. Kf2 {[%clk 0:00:16.6]} 28... Nd7 {[%clk 0:00:11.8]} 29. Qd6
{[%clk 0:00:15.8]} 29... Ne5 {[%clk 0:00:11.3]} 30. Be2 {[%clk 0:00:15.8]} 30...
f6 {[%clk 0:00:10.5]} 31. Nd5 {[%clk 0:00:15.4]} 31... Qd7 {[%clk 0:00:08.1]}
32. Qb8+ {[%clk 0:00:10]} 32... Kh7 {[%clk 0:00:07.2]} 33. Ne3 {[%clk
0:00:07.3]} 33... Qe8 {[%clk 0:00:05]} 34. Nd5 {[%clk 0:00:05.3]} 34... Qxb8
{[%clk 0:00:04.2]} 35. Ne7 {[%clk 0:00:05.3]} 35... Qc7 {[%clk 0:00:03.6]} 36.
Nf5 {[%clk 0:00:06.2]} 36... Bd7 {[%clk 0:00:04]} 37. Ne3 {[%clk 0:00:06.2]}
37... Qc6 {[%clk 0:00:04]} 38. Nd5 {[%clk 0:00:06.7]} 38... Qd6 {[%clk
0:00:04.1]} 39. b5 {[%clk 0:00:06.1]} 39... Be6 {[%clk 0:00:03.8]} 40. bxa6
{[%clk 0:00:07]} 40... bxa6 {[%clk 0:00:04.2]} 41. Ne3 {[%clk 0:00:06.6]} 41...
Qd4 {[%clk 0:00:04.2]} 42. Bd1 {[%clk 0:00:04.8]} 42... g5 {[%clk 0:00:04.2]}
43. hxg5 {[%clk 0:00:04.6]} 43... hxg5 {[%clk 0:00:04.3]} 44. Ke2 {[%clk
0:00:05.1]} 44... Kg7 {[%clk 0:00:04.4]} 45. Nc2 {[%clk 0:00:05.4]} 45... Qd3+
{[%clk 0:00:04.5]} 46. Ke1 {[%clk 0:00:05.3]} 46... Nc4 {[%clk 0:00:04.8]} 47.
Nb4 {[%clk 0:00:04.9]} 47... Qd2+ {[%clk 0:00:05.2]} 0-1

[Event "*** Titled Tuesday Blitz"]
[Site "Chess.com"]
[Date "2021.02.16"]
[Round "6"]
[White "NiranjanNavalgund"]
[Black "Korchmar_Vasiliy"]
[Result "0-1"]
[WhiteElo "2462"]
[BlackElo "2623"]
[TimeControl "180+1"]
[EndTime "11:09:08 PST"]
[Termination "Korchmar_Vasiliy won by resignation"]

1. d4 {[%clk 0:03:00.1]} 1... Nf6 {[%clk 0:02:59]} 2. c4 {[%clk 0:03:00.5]} 2...
g6 {[%clk 0:02:59.3]} 3. Nc3 {[%clk 0:03:00.7]} 3... d5 {[%clk 0:02:59.5]} 4.
Nf3 {[%clk 0:02:52.9]} 4... Bg7 {[%clk 0:02:58.4]} 5. e3 {[%clk 0:02:52.9]} 5...
O-O {[%clk 0:02:58.1]} 6. Bd2 {[%clk 0:02:52.9]} 6... c5 {[%clk 0:02:57.4]} 7.
dxc5 {[%clk 0:02:52.4]} 7... Na6 {[%clk 0:02:57.5]} 8. cxd5 {[%clk 0:02:50.4]}
8... Nxc5 {[%clk 0:02:57.7]} 9. Bc4 {[%clk 0:02:48.1]} 9... a6 {[%clk
0:02:47.8]} 10. a4 {[%clk 0:02:45.8]} 10... Nfe4 {[%clk 0:02:45.3]} 11. O-O
{[%clk 0:02:45.9]} 11... Bg4 {[%clk 0:02:37.5]} 12. Qc2 {[%clk 0:02:29.9]} 12...
Bxf3 {[%clk 0:02:15.3]} 13. gxf3 {[%clk 0:02:09.9]} 13... Nd6 {[%clk 0:02:15.6]}
14. Be2 {[%clk 0:02:09.2]} 14... Qd7 {[%clk 0:02:14.1]} 15. Kh1 {[%clk
0:02:04.3]} 15... Rac8 {[%clk 0:02:11.7]} 16. e4 {[%clk 0:01:45.5]} 16... Qh3
{[%clk 0:02:10.3]} 17. Rg1 {[%clk 0:01:39.6]} 17... Be5 {[%clk 0:02:08.5]} 18.
f4 {[%clk 0:01:21]} 18... Ncxe4 {[%clk 0:02:07.7]} 19. Rg2 {[%clk 0:01:09.1]}
19... Nxc3 {[%clk 0:01:51.1]} 20. bxc3 {[%clk 0:00:47.9]} 20... Bxc3 {[%clk
0:01:50.6]} 21. Bxc3 {[%clk 0:00:27.5]} 21... Rxc3 {[%clk 0:01:51.5]} 22. Qd2
{[%clk 0:00:27.2]} 22... Ne4 {[%clk 0:01:07.7]} 23. Qe1 {[%clk 0:00:25.9]} 23...
Nf6 {[%clk 0:00:50.7]} 24. Rg3 {[%clk 0:00:18.4]} 24... Rxg3 {[%clk 0:00:50.1]}
25. fxg3 {[%clk 0:00:19.3]} 25... Nxd5 {[%clk 0:00:48.3]} 26. Bf3 {[%clk
0:00:19.3]} 26... e6 {[%clk 0:00:47.4]} 27. Rb1 {[%clk 0:00:19]} 27... b6 {[%clk
0:00:37.1]} 28. Qf2 {[%clk 0:00:03]} 28... Qf5 {[%clk 0:00:34.4]} 29. Rc1 {[%clk
0:00:02.4]} 29... Qd3 {[%clk 0:00:32.4]} 30. Rf1 {[%clk 0:00:03.3]} 30... Qc4
{[%clk 0:00:30.8]} 31. Be2 {[%clk 0:00:04.2]} 31... Qxa4 {[%clk 0:00:30.5]} 32.
f5 {[%clk 0:00:04.9]} 32... exf5 {[%clk 0:00:29.7]} 33. h4 {[%clk 0:00:05.4]}
33... h5 {[%clk 0:00:28.9]} 34. Bxh5 {[%clk 0:00:04.8]} 34... gxh5 {[%clk
0:00:22.7]} 35. Qxf5 {[%clk 0:00:05]} 35... Ne7 {[%clk 0:00:20.3]} 36. Qg5+
{[%clk 0:00:05.3]} 36... Ng6 {[%clk 0:00:20.4]} 37. Qxh5 {[%clk 0:00:05.9]}
37... Qb5 {[%clk 0:00:19.6]} 38. Qf3 {[%clk 0:00:04.3]} 38... Qe5 {[%clk
0:00:10.4]} 39. h5 {[%clk 0:00:04.6]} 39... Ne7 {[%clk 0:00:10.5]} 40. Qg4+
{[%clk 0:00:04.7]} 40... Kh8 {[%clk 0:00:10.8]} 41. h6 {[%clk 0:00:04.5]} 41...
Ng6 {[%clk 0:00:08.9]} 42. Rf5 {[%clk 0:00:03]} 42... Qe1+ {[%clk 0:00:08.3]}
43. Kh2 {[%clk 0:00:03.6]} 43... Qd2+ {[%clk 0:00:08.8]} 44. Kh3 {[%clk
0:00:03.5]} 44... Kh7 {[%clk 0:00:04.8]} 45. Rh5 {[%clk 0:00:03.5]} 45... Qc1
{[%clk 0:00:04.5]} 46. Kg2 {[%clk 0:00:02.8]} 46... Qc6+ {[%clk 0:00:04.3]} 47.
Kh2 {[%clk 0:00:01.9]} 47... Qc2+ {[%clk 0:00:04.1]} 48. Kh3 {[%clk 0:00:02]}
48... Qc8 {[%clk 0:00:04.6]} 49. Kh2 {[%clk 0:00:02.9]} 49... Qxg4 {[%clk
0:00:04.2]} 50. Rg5 {[%clk 0:00:03.8]} 50... Qxg5 {[%clk 0:00:04.2]} 51. Kh3
{[%clk 0:00:04.5]} 51... Qxh6+ {[%clk 0:00:04.5]} 52. Kg2 {[%clk 0:00:05.4]} 0-1

[Event "*** Titled Tuesday Blitz"]
[Site "Chess.com"]
[Date "2021.02.16"]
[Round "6"]
[White "IceBelka"]
[Black "Ranindu2003"]
[Result "0-1"]
[WhiteElo "2397"]
[BlackElo "2578"]
[TimeControl "180+1"]
[EndTime "11:09:08 PST"]
[Termination "Ranindu2003 won by resignation"]

1. e4 {[%clk 0:02:54.3]} 1... c5 {[%clk 0:02:58.4]} 2. Nf3 {[%clk 0:02:53.8]}
2... d6 {[%clk 0:02:58.4]} 3. d4 {[%clk 0:02:54.4]} 3... cxd4 {[%clk 0:02:59.3]}
4. Nxd4 {[%clk 0:02:55.1]} 4... Nf6 {[%clk 0:03:00]} 5. Nc3 {[%clk 0:02:55]}
5... a6 {[%clk 0:02:59.3]} 6. Bg5 {[%clk 0:02:53.6]} 6... e6 {[%clk 0:02:58.5]}
7. f4 {[%clk 0:02:49.3]} 7... Nbd7 {[%clk 0:02:57.6]} 8. Qe2 {[%clk 0:02:40.4]}
8... Qc7 {[%clk 0:02:47.8]} 9. O-O-O {[%clk 0:02:39]} 9... Be7 {[%clk
0:02:45.8]} 10. g4 {[%clk 0:02:37.4]} 10... b5 {[%clk 0:02:44.6]} 11. Bxf6
{[%clk 0:02:33]} 11... Bxf6 {[%clk 0:02:39.4]} 12. g5 {[%clk 0:02:33.4]} 12...
Bxd4 {[%clk 0:02:28.3]} 13. Rxd4 {[%clk 0:02:32]} 13... Bb7 {[%clk 0:02:26]} 14.
Qd2 {[%clk 0:02:21]} 14... O-O {[%clk 0:02:24.4]} 15. Bg2 {[%clk 0:01:59.9]}
15... Nb6 {[%clk 0:02:21.9]} 16. b3 {[%clk 0:01:39.5]} 16... Rac8 {[%clk
0:01:49.3]} 17. Kb2 {[%clk 0:01:38.7]} 17... Rfd8 {[%clk 0:01:42.5]} 18. h4
{[%clk 0:01:36.4]} 18... e5 {[%clk 0:01:31.7]} 19. fxe5 {[%clk 0:01:19.4]} 19...
dxe5 {[%clk 0:01:32.6]} 20. Rxd8+ {[%clk 0:01:19]} 20... Rxd8 {[%clk 0:01:32.2]}
21. Qe3 {[%clk 0:01:18.4]} 21... b4 {[%clk 0:01:30.4]} 22. Ne2 {[%clk 0:01:04]}
22... a5 {[%clk 0:01:26.5]} 23. h5 {[%clk 0:00:57.5]} 23... a4 {[%clk
0:01:23.5]} 24. g6 {[%clk 0:00:56.5]} 24... a3+ {[%clk 0:01:22.1]} 25. Kc1
{[%clk 0:00:47.1]} 25... fxg6 {[%clk 0:01:21.4]} 26. hxg6 {[%clk 0:00:46.8]}
26... hxg6 {[%clk 0:01:22.3]} 27. Qh3 {[%clk 0:00:34.8]} 27... Rd6 {[%clk
0:00:38.6]} 28. Qh8+ {[%clk 0:00:32.6]} 28... Kf7 {[%clk 0:00:38.4]} 29. Rf1+
{[%clk 0:00:32]} 29... Rf6 {[%clk 0:00:33.2]} 30. Rxf6+ {[%clk 0:00:27.4]} 30...
Kxf6 {[%clk 0:00:33.6]} 31. Qf8+ {[%clk 0:00:22.1]} 31... Kg5 {[%clk 0:00:33.6]}
32. Qxb4 {[%clk 0:00:20.5]} 32... Ba6 {[%clk 0:00:29.6]} 33. Qd2+ {[%clk
0:00:17]} 33... Kf6 {[%clk 0:00:23.7]} 34. Nc3 {[%clk 0:00:17.1]} 34... Qc5
{[%clk 0:00:18.3]} 35. Qe1 {[%clk 0:00:11.2]} 35... Kf7 {[%clk 0:00:15.3]} 36.
Nd5 {[%clk 0:00:11.1]} 36... Nxd5 {[%clk 0:00:10.9]} 37. exd5 {[%clk 0:00:12]}
37... Qd4 {[%clk 0:00:11.8]} 38. c3 {[%clk 0:00:10.3]} 38... Qf4+ {[%clk
0:00:10.1]} 39. Qd2 {[%clk 0:00:09.9]} 39... Qg4 {[%clk 0:00:05.4]} 40. c4
{[%clk 0:00:10]} 40... Ke7 {[%clk 0:00:04]} 41. Qf2 {[%clk 0:00:09.5]} 41... Kd6
{[%clk 0:00:03.1]} 42. Qb6+ {[%clk 0:00:09.5]} 42... Ke7 {[%clk 0:00:03.5]} 43.
Qxa6 {[%clk 0:00:08.8]} 43... Qxg2 {[%clk 0:00:03.7]} 44. Qe6+ {[%clk
0:00:08.9]} 44... Kd8 {[%clk 0:00:03.8]} 45. Qd6+ {[%clk 0:00:08.1]} 45... Ke8
{[%clk 0:00:03.9]} 46. Qxe5+ {[%clk 0:00:08.5]} 46... Kd8 {[%clk 0:00:03.6]} 47.
d6 {[%clk 0:00:08.9]} 47... Qf1+ {[%clk 0:00:03.5]} 48. Kc2 {[%clk 0:00:09.2]}
48... Qf2+ {[%clk 0:00:04]} 49. Kc3 {[%clk 0:00:09.7]} 49... Qb2+ {[%clk
0:00:03.5]} 50. Kb4 {[%clk 0:00:08.7]} 50... Qxe5 {[%clk 0:00:04.4]} 51. Kxa3
{[%clk 0:00:09.1]} 51... Qxd6+ {[%clk 0:00:04.9]} 52. b4 {[%clk 0:00:09.5]}
52... g5 {[%clk 0:00:04.9]} 53. c5 {[%clk 0:00:10]} 53... Qb8 {[%clk 0:00:05.5]}
54. Kb3 {[%clk 0:00:10.3]} 54... g4 {[%clk 0:00:05.2]} 0-1

[Event "*** Titled Tuesday Blitz"]
[Site "Chess.com"]
[Date "2021.02.16"]
[Round "6"]
[White "IAgrest"]
[Black "Zq1"]
[Result "1-0"]
[WhiteElo "2348"]
[BlackElo "2502"]
[TimeControl "180+1"]
[EndTime "11:09:08 PST"]
[Termination "IAgrest won on time"]

1. e4 {[%clk 0:03:00.9]} 1... c5 {[%clk 0:02:58.6]} 2. Nf3 {[%clk 0:03:00.8]}
2... d6 {[%clk 0:02:58.6]} 3. d4 {[%clk 0:03:01.1]} 3... cxd4 {[%clk 0:02:58.1]}
4. Nxd4 {[%clk 0:03:02]} 4... Nf6 {[%clk 0:02:58.1]} 5. Nc3 {[%clk 0:03:02]}
5... Nc6 {[%clk 0:02:58.4]} 6. Bg5 {[%clk 0:03:01.8]} 6... g6 {[%clk 0:02:56.8]}
7. Qd2 {[%clk 0:02:47]} 7... Bg7 {[%clk 0:02:55.6]} 8. Nb3 {[%clk 0:02:45.4]}
8... h6 {[%clk 0:02:51.7]} 9. Be3 {[%clk 0:02:41.5]} 9... Ng4 {[%clk 0:02:48.3]}
10. Bf4 {[%clk 0:02:38.3]} 10... Be6 {[%clk 0:02:38.3]} 11. f3 {[%clk
0:02:32.1]} 11... g5 {[%clk 0:02:29.6]} 12. Bg3 {[%clk 0:02:26]} 12... Nge5
{[%clk 0:02:27]} 13. h4 {[%clk 0:02:11.4]} 13... g4 {[%clk 0:02:22.1]} 14. f4
{[%clk 0:01:59.3]} 14... Nc4 {[%clk 0:02:20.5]} 15. Bxc4 {[%clk 0:01:52.5]}
15... Bxc4 {[%clk 0:02:19.5]} 16. O-O-O {[%clk 0:01:52.4]} 16... a5 {[%clk
0:02:12.9]} 17. e5 {[%clk 0:01:34.3]} 17... a4 {[%clk 0:02:02.2]} 18. Nd4 {[%clk
0:01:30.1]} 18... dxe5 {[%clk 0:01:55.2]} 19. fxe5 {[%clk 0:01:19.1]} 19... a3
{[%clk 0:01:32.8]} 20. b3 {[%clk 0:01:15]} 20... Qxd4 {[%clk 0:01:28.8]} 21.
Qxd4 {[%clk 0:01:11.8]} 21... Nxd4 {[%clk 0:01:28.2]} 22. Rxd4 {[%clk
0:01:10.9]} 22... Be6 {[%clk 0:01:28.7]} 23. Nb5 {[%clk 0:00:55.3]} 23... Rc8
{[%clk 0:01:17.9]} 24. Nxa3 {[%clk 0:00:51.7]} 24... h5 {[%clk 0:01:15.5]} 25.
Bf4 {[%clk 0:00:45.8]} 25... O-O {[%clk 0:01:13.3]} 26. g3 {[%clk 0:00:44.8]}
26... Rc5 {[%clk 0:01:11.9]} 27. Re1 {[%clk 0:00:43.5]} 27... Rfc8 {[%clk
0:01:10.5]} 28. Kb2 {[%clk 0:00:38]} 28... Kh7 {[%clk 0:00:53.3]} 29. Re2 {[%clk
0:00:34.9]} 29... Kg6 {[%clk 0:00:51.9]} 30. c4 {[%clk 0:00:19.9]} 30... Bf5
{[%clk 0:00:46.7]} 31. Nb5 {[%clk 0:00:17]} 31... f6 {[%clk 0:00:37.1]} 32. e6
{[%clk 0:00:15.3]} 32... R8c6 {[%clk 0:00:28.4]} 33. Rd7 {[%clk 0:00:12.7]}
33... Rxe6 {[%clk 0:00:17.7]} 34. Rxe6 {[%clk 0:00:12]} 34... Bxe6 {[%clk
0:00:17.6]} 35. Rxe7 {[%clk 0:00:12.1]} 35... f5+ {[%clk 0:00:17.1]} 36. Ka3
{[%clk 0:00:11.1]} 36... Bc8 {[%clk 0:00:16.9]} 37. Nd6 {[%clk 0:00:09.1]} 37...
Bf8 {[%clk 0:00:14]} 38. Re8 {[%clk 0:00:07.6]} 38... Bxd6 {[%clk 0:00:10.2]}
39. Bxd6 {[%clk 0:00:08.5]} 39... Rc6 {[%clk 0:00:10.4]} 40. c5 {[%clk
0:00:07.3]} 40... b6 {[%clk 0:00:09]} 41. b4 {[%clk 0:00:07.5]} 41... bxc5
{[%clk 0:00:08.8]} 42. Bxc5 {[%clk 0:00:08]} 42... Ba6 {[%clk 0:00:06]} 43. Kb2
{[%clk 0:00:07.2]} 43... f4 {[%clk 0:00:05.5]} 44. gxf4 {[%clk 0:00:06.8]} 44...
Kf5 {[%clk 0:00:05.6]} 45. Rf8+ {[%clk 0:00:05.3]} 45... Ke4 {[%clk 0:00:04.8]}
46. f5 {[%clk 0:00:03.1]} 46... g3 {[%clk 0:00:03.7]} 47. f6 {[%clk 0:00:03]}
47... Bc4 {[%clk 0:00:03.2]} 48. f7 {[%clk 0:00:01.9]} 48... Bxf7 {[%clk
0:00:03.1]} 49. Rxf7 {[%clk 0:00:02.6]} 49... g2 {[%clk 0:00:03.4]} 50. Rg7
{[%clk 0:00:03]} 50... Kf3 {[%clk 0:00:02.9]} 51. a4 {[%clk 0:00:02.6]} 51...
Re6 {[%clk 0:00:02.9]} 52. a5 {[%clk 0:00:02.6]} 52... Re2+ {[%clk 0:00:02.5]}
53. Kb3 {[%clk 0:00:02.7]} 53... Re4 {[%clk 0:00:02.8]} 54. a6 {[%clk
0:00:02.6]} 54... Rxh4 {[%clk 0:00:02.9]} 55. a7 {[%clk 0:00:02.3]} 1-0